Cogmind - Beta 15 @@@ ROGUE MODE // 2025.07.22 @ 18:45:05 Player: FrigidRock Result: Destroyed by S-10 Pest with Light Assault Rifle Performance ------------- Evolutions (0) 0 Regions Visited (2) 400 Robots Destroyed (8) 40 Value Destroyed (65) 65 Prototype IDs (0) 0 Alien Tech Used (0) 0 Bonus (0) 0 TOTAL SCORE: 505 Bonus ------- None Cogmind --------- Core Integrity 0/250 Matter 242/300 Energy 99/100 System Corruption 0% Temperature Cool (0) Movement Core (50) Location -10/Mines Parts ------- > --- POWER (1) -------- (None) > --- PROPULSION (2) --- (None) > --- UTILITY (2) ------ (None) > --- WEAPON (2) ------- (None) > --- INVENTORY (5) ---- Blade Trap Peak State ------------ > --- POWER ------------ Ion Engine > --- PROPULSION ------- Wheel Wheel > --- UTILITY ---------- Improved Terrain Scanner Seismic Detector > --- WEAPON ----------- Medium Laser Small Laser > --- INVENTORY -------- (None) [Rating: 9] Favorites ----------- Power Ion Engine Engine Ion Engine Propulsion Wheel Wheel Wheel Utility Seismic Detector Device Seismic Detector Storage Small Storage Unit Weapon Small Laser Energy Gun Small Laser Special Weapon Mining Laser Build | -11 -10 -10 ------- Run | Yrd Mat Min Slots Evolved . | . . . Power . | . . . Propulsion . | . . . Utility . | . . . Weapon . | . . . Parts Attached 15 | 8 7 . Power 2 | 1 1 . Engine 2 | 1 1 . Core . | . . . Reactor . | . . . Propulsion 5 | 2 3 . Treads . | . . . Leg . | . . . Wheel 5 | 2 3 . Hover . | . . . Flight . | . . . Utility 4 | 3 1 . Device 3 | 2 1 . Storage 1 | 1 . . Processor . | . . . Hackware . | . . . Protection . | . . . Artifact . | . . . Weapon 4 | 2 2 . Energy Gun 2 | 2 . . Energy Cannon . | . . . Ballistic Gun . | . . . Ballistic Cannon . | . . . Launcher . | . . . Special Weapon 2 | . 2 . Impact Weapon . | . . . Slashing Weapon . | . . . Piercing Weapon . | . . . Special Melee Weapon . | . . . Unidentified Prototypes . | . . . Parts Lost 10 | . 10 . Power 1 | . 1 . Propulsion 4 | . 4 . Utility 2 | . 2 . Weapon 3 | . 3 . Highest Loss Streak 9 | . 9 . To Critical Strikes . | . . . Average Backups 1 | . 1 . Power . | . . . Propulsion 1 | . 1 . Utility . | . . . Weapon . | . . . Tool/Special . | . . . Unused Backups . | . . . Power . | . . . Propulsion . | . . . Utility . | . . . Weapon . | . . . Tool/Special . | . . . Average Slot Usage (%) 76 | . 92 25 Engine 12 | . 12 11 Wheel 23 | . 26 13 Device 20 | . 26 . Energy Gun 18 | . 23 . Peak Build Rating 9 | 9 9 2 Average Rating 6 | 5 8 1 On Entrance 3 | . 9 1 Naked Turns 7 | . . 7 Heaviest Build 10 | 10 10 5 Greatest Support 20 | 20 20 10 Greatest Overweight (x) . | . . . Average Overweight (x) . | . . . Largest Inventory Capacity 8 | 8 5 5 Average Capacity 5 | 5 5 5 Most Carried 5 | 2 3 5 Average Carried 1 | . 1 2 Final Capacity 5 | 5 5 5 Final Carried 2 | 2 1 1 Class Distribution -------------------- 89% | Mutant 10% | Scavenger-Mutant Dominant Class ---------------- Mutant | -10/Materials Mutant | -10/Mines Resources | -11 -10 -10 ----------- Run | Yrd Mat Min Matter Collected 307 | 280 27 . Remotely . | . . . Salvage Created 153 | 111 42 . Parts 13 | 9 4 . Haulers Intercepted . | . . . Recyclers Shooed 1 | 1 . . Parts Field Recycled . | . . . Retrieved Matter . | . . . Parts Self-Destructed . | . . . Prevented . | . . . Kills | -11 -10 -10 ------- Run | Yrd Mat Min Combat Hostiles Destroyed 3 | . 3 . Guns 3 | . 3 . Classes Destroyed 2 | 1 1 . Tunneler 5 | 5 . . Swarmer 3 | . 3 . Best Kill Streak 4 | 4 3 . Combat Bots Only 3 | . 3 . Max Kills in Single Turn 1 | 1 1 . Gunslinging . | . . . Exploded . | . . . Melee . | . . . Uniques/NPCs Destroyed . | . . . Combat | -11 -10 -10 -------- Run | Yrd Mat Min Hostile Shots Fired 97 | . 93 4 Missed 27 | . 26 1 Hits 70 | . 67 3 Projectile 70 | . 67 3 Damage Taken 714 | . 691 23 Core 250 | . 235 15 Absorbed by Shields . | . . . Core Remaining (%) 100 | 100 . . Volleys Fired 31 | 11 20 . Largest 2 | 2 2 . Hottest 200 | 90 200 . Shots Fired 60 | 22 38 . Gun 56 | 22 34 . Cannon . | . . . Launcher . | . . . Special 4 | . 4 . Kinetic . | . . . Thermal 60 | 22 38 . Explosive . | . . . Electromagnetic . | . . . Robot Hit Streak 6 | 4 6 . Robot Miss Streak 5 | 2 5 . Penetration Max . | . . . Secondary Targets . | . . . Shots Hit Robots 32 | 15 17 . Core Hits 9 | 6 3 . Critical Kills . | . . . Critical Parts Destroyed . | . . . Critical Strikes . | . . . Melee Attacks . | . . . Impact . | . . . Slashing . | . . . Piercing . | . . . Sneak Attacks . | . . . Combat Hostiles . | . . . Follow-up Attacks . | . . . Damage Inflicted 424 | 182 242 . Guns 352 | 182 170 . Cannons . | . . . Explosions . | . . . Melee . | . . . Ramming . | . . . Kinetic . | . . . Thermal 424 | 182 242 . Explosive . | . . . Electromagnetic . | . . . Impact . | . . . Slashing . | . . . Piercing . | . . . Highest Corruption . | . . . Average Corruption . | . . . Corruption Purged . | . . . Corruption Blocked . | . . . Overload Shots . | . . . Overflow Damage . | . . . Projectiles . | . . . Explosions . | . . . Melee . | . . . Knockbacks . | . . . Impact . | . . . Kinetic . | . . . Secondary . | . . . Self-Inflicted Damage . | . . . Shots . | . . . Rammed . | . . . Targets Rammed . | . . . Kicked . | . . . Crushed . | . . . Highest Temperature 330 | 180 330 . Average Temperature 101 | 68 117 . Received Heat Transfer 291 | . 291 . Effects 1 | . 1 . Shutdowns 1 | . 1 . Siege Activations . | . . . Martial Activations . | . . . Shielding Activations . | . . . Robots Disrupted . | . . . Combat Hostiles . | . . . Robots Corrupted . | . . . Combat Hostiles . | . . . Parts Fried . | . . . Impact Corruptions . | . . . Robots Melted . | . . . Combat Hostiles . | . . . Parts Melted 1 | 1 . . Heat Transferred 1079 | 483 596 . Parts Sabotaged . | . . . Parts Stolen . | . . . Parts Stripped . | . . . Power Chain Reactions . | . . . Alert | -11 -10 -10 ------- Run | Yrd Mat Min Maximum Alert Level . | . . . Low Security (%) 100 | 100 100 100 Level 1 . | . . . Level 2 . | . . . Level 3 . | . . . Level 4 . | . . . Level 5 . | . . . High Security . | . . . Max Security . | . . . Peak Influence 75 | 10 75 40 Initial 28 | . 3 28 Average 11 | 2 12 9 Influence Increases 274 | 25 199 50 Destroy 0b10 Robot/C 60 | . 60 . Destroy 0b10 Robot/NC 25 | 25 . . Destroy Leader 10 | . 10 . Trap Triggered on 0b10 20 | . . 20 Successful Hack 8 | . 8 . Select Force Hacks 30 | . 30 . Destroy Structure 1 | . 1 . Lose Combat Pursuer 120 | . 90 30 Influence Decreases 234 | 20 129 85 Entered New Map 49 | . 2 47 Time Decay 153 | 20 95 38 Lost Part 32 | . 32 . Squads Dispatched 3 | . 3 . Investigation 1 | . 1 . Extermination . | . . . Reinforcement 2 | . 2 . Assault . | . . . Garrison . | . . . Intercept . | . . . Searches Triggered . | . . . Construction Impeded . | . . . Haulers Reinforced . | . . . Active Scanning Responses . | . . . Cargo Convoy Interrupts . | . . . Stealth | -11 -10 -10 --------- Run | Yrd Mat Min Distress Signals 1 | . 1 . Communications Jammed . | . . . Distress Signals . | . . . Times Spotted 20 | . 15 5 Peak Tracking Total 8 | . 8 3 Tactical Retreats 3 | . 2 1 Traps | -11 -10 -10 ------- Run | Yrd Mat Min Traps Triggered 1 | . 1 . Indirectly . | . . . Trap Hack Attempts . | . . . Triggered . | . . . Disarmed . | . . . Reprogrammed . | . . . Reused 2 | . . 2 Traps Extracted . | . . . Installed 4 | . . 4 Triggered 2 | . . 2 Most Traps Carried 5 | . . 5 Machines | -11 -10 -10 ---------- Run | Yrd Mat Min Machines Disabled . | . . . Max in Single Turn . | . . . Machines Repaired . | . . . Machines Dismantled . | . . . Machines Sabotaged . | . . . Overloaded Fab Kills . | . . . Hacking | -11 -10 -10 --------- Run | Yrd Mat Min Machines Accessed 4 | . 4 . Terminals 3 | . 3 . Fabricators . | . . . Repair Stations . | . . . Recycling Units 1 | . 1 . Scanalyzers . | . . . Garrison Access . | . . . Total Hacks 8 | . 8 . Successful 4 | . 4 . Failed 4 | . 4 . Catastrophic . | . . . Database Lockouts . | . . . Manual 2 | . 2 . Terminals 7 | . 7 . Fabricators . | . . . Repair Stations . | . . . Recycling Units 1 | . 1 . Scanalyzers . | . . . Garrison Access . | . . . Terminal Hacks 3 | . 3 . Branch Access Points 1 | . 1 . Locate Traps 1 | . 1 . Recall Reinforcements 1 | . 1 . Fabricator Hacks . | . . . Repair Station Hacks . | . . . Recycling Unit Hacks . | . . . Scanalyzer . | . . . Garrison Access Hacks . | . . . Unauthorized Hacks 1 | . 1 . Terminals . | . . . Fabricators . | . . . Repair Stations . | . . . Recycling Units 1 | . 1 . Tunnel 1 | . 1 . Scanalyzers . | . . . Garrison Access . | . . . Data Cores Recovered . | . . . Used . | . . . Hacking Detections 3 | . 3 . Full Trace Events . | . . . Feedback Events . | . . . Feedback Blocked . | . . . Robot Schematics Acquired . | . . . Robots Built . | . . . Authchips . | . . . Time . | . . . Total Robot Build Rating . | . . . Part Schematics Acquired . | . . . Parts Built . | . . . Authchips . | . . . Time . | . . . Total Part Build Rating . | . . . Parts Repaired . | . . . Time . | . . . Parts Recycled . | . . . Recycled Matter . | . . . Retrieved Matter . | . . . Retrieved Components . | . . . Parts Scanalyzed . | . . . Part Schematics Acquired . | . . . Parts Damaged . | . . . Bothacking | -11 -10 -10 ------------ Run | Yrd Mat Min Used RIF Installer . | . . . Robots Hacked . | . . . Non-combat . | . . . Combat . | . . . Robot Hacks Applied . | . . . Relay Couplers Released . | . . . Fabnet Peak Effective % . | . . . Robots Rewired . | . . . Allies Hacked . | . . . Hacks Repelled . | . . . Allies | -11 -10 -10 -------- Run | Yrd Mat Min Total Allies . | . . . Largest Group . | . . . Highest-Rated Group . | . . . Highest-Rated Ally . | . . . Total Orders . | . . . Ally Attacks . | . . . Total Damage . | . . . Kills . | . . . Allies Corrupted . | . . . Allies Melted . | . . . Intel | -11 -10 -10 ------- Run | Yrd Mat Min Active Infowar (turns) 669 | 28 641 . Sensors 5 | . 5 . Terrain 631 | 26 605 . Seismic 666 | 28 638 . Robot Analysis Total . | . . . Derelict Logs Recovered 1 | . . 1 Drone Launches . | . . . Drone Recoveries . | . . . Exploration | -11 -10 -10 ------------- Run | Yrd Mat Min Turns Passed 929 | 97 643 189 Spaces Moved 591 | 63 308 220 Core 18 | 3 . 15 Treads . | . . . Legs . | . . . Wheels 573 | 60 308 205 Hover . | . . . Flight . | . . . Fastest Speed 50 | 50 80 50 Average Speed 79 | 78 80 77 Slowest Speed 80 | 80 80 80 Overloaded Moves . | . . . Propulsion Burnouts . | . . . Robots Hopped . | . . . Potential Cave-ins . | . . . Cave-ins Triggered . | . . . Exploration Rate (%) 40 | 4 66 50 Regions Visited 2 Branch Regions 1 Pre-discovered Areas 1 | . 1 . Known Exits Taken 1 | . 1 . Unknown Exits Taken 1 | 1 . . Scrap Searched . | . . . Spaces Dug . | . . . Terrain Destroyed 1 | . 1 . Melee . | . . . Projectile 1 | . 1 . AOE . | . . . Terrain Rammed . | . . . Walls Destroyed . | . . . Machines Disabled . | . . . Actions | -11 -10 -10 --------- Run | Yrd Mat Min Total 978 | 84 655 239 Wait 316 | . 311 5 Move 589 | 62 307 220 Hop . | . . . Pick Up 8 | 2 1 5 Fast Attach 16 | 8 8 . Attach 4 | . 3 1 Detach . | . . . Swap 1 | . 1 . Drop 9 | 1 4 4 Fire 31 | 11 20 . Melee . | . . . Ram . | . . . Kick . | . . . Crush . | . . . Escape Stasis . | . . . Rewire . | . . . Trap 4 | . . 4 Miscellaneous . | . . . Route ------- -11/Scrapyard -10/Materials (discovered 3 exits: [*Mat x2] / *Min) -10/Mines History --------- Turn | Location | Event 9 | -11/Scrapyard | Discovered new exit (range 16) 98 | -11/Scrapyard | Entered Materials 308 | -10/Materials | Build established: Mutant 523 | -10/Materials | Discovered new exit (range 15) 536 | -10/Materials | Identified exit to Mines 671 | -10/Materials | Discovered new exit (range 11) 706 | -10/Materials | Core integrity fell below 50% 712 | -10/Materials | Core integrity fell below 20% 741 | -10/Materials | Entered Mines 770 | -10/Mines | Lost 9 parts (1p3n2u3w) 786 | -10/Mines | Found a hidden stash of uninstalled traps 821 | -10/Mines | Learned Materials garrison access intel 923 | -10/Mines | Released all parts (2) 930 | -10/Mines | Destroyed by S-10 Pest with Light Assault Rifle Last Messages --------------- 00707_ Imp. Terrain Scanner destroyed. 00709_ Wheel destroyed. 00739_ Seismic Detector destroyed. LOCATION=MINES GOAL=ESCAPE 00786_ A stash of uninstalled traps is collected here! 00787_ Acquired Blade Trap. 00821_ Acquired derelict log, extracted data. Data stored: Materials garrison access intel. 00831_ T-07 Excavator is excavating. 00892_ Dropped Blade Trap. 00892_ Installed Blade Trap. 00894_ Dropped Blade Trap. 00895_ Installed Blade Trap. 00896_ Dropped Blade Trap. 00897_ Installed Blade Trap. 00899_ Dropped Blade Trap. 00899_ Installed Blade Trap. 00923_ Released Ion Engine. 00923_ Released Wheel. Map ----- +----------------------------------------------------+ | ???????????????????????????????## """ | | ????????????????????????????????## ##### """ | | ?????????????????????????????????# ##???## | | ?????????????????????????????????# #?????# | | ?????????????????????????????????# #?????## | | ?????????????????????????????????# #??????##### | | ?????????????????????????????????# #??????????## | | ?????????????????????????????##### #???????????# | | ????????????# ????????????? ## #???????????## | | ???????????# ?????????????# ## #????????????## | | ????????#??# ?????????????# ## #?????????????? | | ?????? #?# ???????????### ##########????? | | ?????? ## ??????????## #### ##???? | | ??????? ?????###### ### #???# | | ???????? ?????# ? ##??# | | ???????? ?????# #?### ##?# | | ????????? ?????# #???# ### | | ?????????? #?????# #??## ## | | ??????????? #??#### #### | | ???????????? #??# ## | | ????????????# #??# ###### ### ### | | ????????????# #??# #????## ##?###### ##?# | | ????????????# #### #?????####???????####??# | | ???????????## ####??????????????????## | | ???????????# ###### ############???????# | | ???????????# #?### @ s #???????# | | ???????????# #### ##########s#???????## # | | ???????????# #?# ##????????# #????????# ## | | ???????????# #?# ##????????# #????????# #? | | ???????????# #?# ###??????# #????????## ## | | ??????????## ### ##?????# #?????????## # | | ?????????## ^## #?????# #??????????## | | ?????????# ^^^ #?????#=#???????????## | | ?????????### ######*##### """ ???## | | ???????????## """ ????## | | ????????????# #????# | | ????????????# ############ #????# | | ????????????# #####??????????????###????# | | ???????????? ## #?????????????????????????# | | ??????????? #### #?????????????????????????? | | ??????????# #??# #?????????????????????????? | | ??????????## ##???# ##?????????????????????????? | | ???????????####?????###??????????????????????????? | | ?????????????????????????????????????????????????? | | ?????????????????????????????????????????????????? | | ?????????????????????????????????????????????????? | | | | | | | | | +----------------------------------------------------+ Best States ------------- Heat Dissipation 25 Energy Generation 10 Energy Capacity 250 Matter Stores 300 Matter Capacity 300 Sight Range 16 Terrain Scan Range 16 Terrain Scan Density 10 Evasion (%) 50 Item Schematics ----------------- None Robot Schematics ------------------ None Fabricated ------------ Nothing Repaired ---------- Nothing Alien Tech Used ----------------- None Achievements -------------- None Challenges ------------ None Game ------ Seed LegServoBuckler Manual? 0 Play Time 00:09:15 Cumulative 278.4 hours Start 2025.07.21 @ 22:00:45 End 2025.07.22 @ 18:45:05 Sessions 2 Manual Loads 0 Difficulty Rogue Special Mode None Game No. 107 Rogue 36 Adventurer 68 Explorer 3 Win Type - Total 23 Types 15/1/1/4/1/0/0/0/0/1 Lore% 74 Gallery% 72 Achievement% 69 Wizard Run 0 Options --------- Layout 0 ASCII 0 Keyboard 0 Movement Numpad Keybinds 0 Fullscreen 1 Font 24/Smallcaps Map View 76x50 Zoom Use 0% Tactical HUD 1 Map Filters NONE Filters NONE Steam 1 RUN: b983b1bd-589f-4448-8b8c-d86967544ed2